[Event "Late-Titled-Tuesday-Blitz-March-19-2024"]
[Site "Chess.com"]
[Date "2024.03.19"]
[Round "5"]
[White "VanRommel28"]
[Black "chess94cu"]
[Result "0-1"]
[WhiteElo "2498"]
[BlackElo "2647"]
[TimeControl "180+1"]
[EndTime "14:57:55 PDT"]
[Termination "chess94cu won by resignation"]

1. d4 {[%clk 0:03:00.9]} 1... Nf6 {[%clk 0:02:59.5]} 2. Nf3 {[%clk 0:03:00.3]}
2... d6 {[%clk 0:03:00]} 3. Nc3 {[%clk 0:02:59.7]} 3... Nbd7 {[%clk 0:03:00.4]}
4. e4 {[%clk 0:02:59.4]} 4... c6 {[%clk 0:03:01]} 5. a4 {[%clk 0:02:52.8]} 5...
Qa5 {[%clk 0:03:00.2]} 6. Bd3 {[%clk 0:02:49.7]} 6... e5 {[%clk 0:02:59.4]} 7.
O-O {[%clk 0:02:46.4]} 7... Be7 {[%clk 0:02:59.4]} 8. Re1 {[%clk 0:02:45.9]}
8... O-O {[%clk 0:02:58.8]} 9. Bd2 {[%clk 0:02:39.2]} 9... Qc7 {[%clk
0:02:57.8]} 10. dxe5 {[%clk 0:02:32.9]} 10... dxe5 {[%clk 0:02:56.7]} 11. Bc4
{[%clk 0:02:32.9]} 11... a5 {[%clk 0:02:51.8]} 12. Qe2 {[%clk 0:02:30.4]} 12...
Nc5 {[%clk 0:02:47.6]} 13. Bg5 {[%clk 0:02:23.2]} 13... Be6 {[%clk 0:02:35.6]}
14. h3 {[%clk 0:02:18.9]} 14... h6 {[%clk 0:02:27]} 15. Be3 {[%clk 0:01:57]}
15... Nh5 {[%clk 0:02:06.2]} 16. Bxe6 {[%clk 0:01:35.4]} 16... Nxe6 {[%clk
0:02:02.4]} 17. g3 {[%clk 0:01:32.6]} 17... Nf6 {[%clk 0:01:52.5]} 18. Qc4
{[%clk 0:01:29.2]} 18... Bb4 {[%clk 0:01:48.7]} 19. Nh4 {[%clk 0:01:20.5]} 19...
Ne8 {[%clk 0:01:17.5]} 20. Nf5 {[%clk 0:01:04.7]} 20... Nd6 {[%clk 0:01:17.9]}
21. Nxd6 {[%clk 0:00:58.8]} 21... Qxd6 {[%clk 0:01:18.8]} 22. Rad1 {[%clk
0:00:58.3]} 22... Qe7 {[%clk 0:01:18]} 23. Bb6 {[%clk 0:00:56.2]} 23... Ra6
{[%clk 0:00:42.4]} 24. Be3 {[%clk 0:00:55.7]} 24... Raa8 {[%clk 0:00:42.4]} 25.
Rf1 {[%clk 0:00:55.5]} 25... Rad8 {[%clk 0:00:39.8]} 26. Bb6 {[%clk 0:00:53.1]}
26... Rd7 {[%clk 0:00:37.7]} 27. Rxd7 {[%clk 0:00:51.9]} 27... Qxd7 {[%clk
0:00:38.6]} 28. Rd1 {[%clk 0:00:52.6]} 28... Qc8 {[%clk 0:00:38.7]} 29. Ne2
{[%clk 0:00:48.7]} 29... Ng5 {[%clk 0:00:38]} 30. h4 {[%clk 0:00:47.6]} 30...
Nf3+ {[%clk 0:00:26.8]} 31. Kg2 {[%clk 0:00:46.2]} 31... Qg4 {[%clk 0:00:27.5]}
32. Bd8 {[%clk 0:00:31.2]} 32... Kh7 {[%clk 0:00:21.6]} 33. c3 {[%clk
0:00:12.7]} 33... Rxd8 {[%clk 0:00:18.1]} 34. Rxd8 {[%clk 0:00:12.4]} 34...
Nxh4+ {[%clk 0:00:19]} 35. Kh2 {[%clk 0:00:11]} 35... Nf3+ {[%clk 0:00:19.2]}
36. Kg2 {[%clk 0:00:11.5]} 36... Ng5 {[%clk 0:00:17.1]} 37. Ng1 {[%clk
0:00:09.2]} 37... Be7 {[%clk 0:00:16]} 38. Rd3 {[%clk 0:00:08.5]} 38... b5
{[%clk 0:00:14.3]} 39. axb5 {[%clk 0:00:08.2]} 39... cxb5 {[%clk 0:00:15.2]} 40.
Qd5 {[%clk 0:00:07.8]} 40... h5 {[%clk 0:00:13.8]} 41. f3 {[%clk 0:00:07.4]}
41... Qc8 {[%clk 0:00:12.8]} 42. Qxe5 {[%clk 0:00:06.9]} 42... Bf6 {[%clk
0:00:12.9]} 43. Qf5+ {[%clk 0:00:06.8]} 43... Qxf5 {[%clk 0:00:12.3]} 44. exf5
{[%clk 0:00:07.7]} 44... Kh6 {[%clk 0:00:11.1]} 45. Rd5 {[%clk 0:00:07.8]} 45...
b4 {[%clk 0:00:10.9]} 46. c4 {[%clk 0:00:05.6]} 46... a4 {[%clk 0:00:10]} 47.
Ra5 {[%clk 0:00:03.8]} 47... Bxb2 {[%clk 0:00:10.7]} 48. Rxa4 {[%clk 0:00:03.9]}
48... Bc3 {[%clk 0:00:09.6]} 49. Ra6+ {[%clk 0:00:04.2]} 49... f6 {[%clk
0:00:09.7]} 50. Rb6 {[%clk 0:00:04.5]} 50... Nf7 {[%clk 0:00:10.2]} 51. c5
{[%clk 0:00:04.2]} 51... Bd4 {[%clk 0:00:10.7]} 52. Rb5 {[%clk 0:00:03.3]} 52...
Ne5 {[%clk 0:00:09.3]} 53. Rxb4 {[%clk 0:00:03.5]} 53... Bxc5 {[%clk 0:00:08.3]}
54. Rb7 {[%clk 0:00:04.1]} 54... Bxg1 {[%clk 0:00:06.4]} 55. Kxg1 {[%clk
0:00:02.3]} 55... Nxf3+ {[%clk 0:00:07.3]} 56. Kf2 {[%clk 0:00:02.8]} 56... Nd4
{[%clk 0:00:08.2]} 57. Rd7 {[%clk 0:00:01.2]} 57... Nxf5 {[%clk 0:00:08.8]} 58.
Kf3 {[%clk 0:00:02]} 58... Kg6 {[%clk 0:00:09.3]} 59. Rd5 {[%clk 0:00:02]} 59...
Nh6 {[%clk 0:00:09.9]} 60. Ra5 {[%clk 0:00:02.5]} 60... Nf7 {[%clk 0:00:10.6]}
61. Kf4 {[%clk 0:00:03.1]} 61... Ng5 {[%clk 0:00:10.7]} 62. Rb5 {[%clk
0:00:02.9]} 62... Ne6+ {[%clk 0:00:11.2]} 63. Ke3 {[%clk 0:00:02.4]} 63... Nf8
{[%clk 0:00:09.1]} 64. Rb6 {[%clk 0:00:02]} 64... Nd7 {[%clk 0:00:09.4]} 65. Ra6
{[%clk 0:00:02.9]} 65... Kf5 {[%clk 0:00:09.4]} 66. Ra4 {[%clk 0:00:02.7]} 66...
Ne5 {[%clk 0:00:09.5]} 67. Rd4 {[%clk 0:00:02.1]} 67... g5 {[%clk 0:00:10]} 68.
Ra4 {[%clk 0:00:02.6]} 68... Ng6 {[%clk 0:00:08.7]} 69. Kf3 {[%clk 0:00:02.9]}
69... Ne5+ {[%clk 0:00:08.2]} 70. Ke3 {[%clk 0:00:03.6]} 70... Ke6 {[%clk
0:00:08.5]} 71. Ra6+ {[%clk 0:00:03.5]} 71... Kf7 {[%clk 0:00:08.2]} 72. Ra7+
{[%clk 0:00:03.4]} 72... Kg6 {[%clk 0:00:08.6]} 73. Ra4 {[%clk 0:00:04]} 73...
Nf7 {[%clk 0:00:08.1]} 74. Ke4 {[%clk 0:00:04.2]} 74... Nd6+ {[%clk 0:00:08.6]}
75. Kd5 {[%clk 0:00:05]} 75... Nf5 {[%clk 0:00:08.6]} 76. Ra3 {[%clk 0:00:05.6]}
76... g4 {[%clk 0:00:08.4]} 77. Ke6 {[%clk 0:00:05.7]} 77... Nd4+ {[%clk
0:00:07.4]} 78. Kd5 {[%clk 0:00:05.7]} 78... Nf3 {[%clk 0:00:08.1]} 79. Ke6
{[%clk 0:00:05.8]} 79... Kg5 {[%clk 0:00:08.2]} 80. Ra5+ {[%clk 0:00:05.5]}
80... Kg6 {[%clk 0:00:08.2]} 81. Ra8 {[%clk 0:00:04.1]} 81... Ng5+ {[%clk
0:00:07]} 82. Ke7 {[%clk 0:00:04.1]} 82... Kf5 {[%clk 0:00:07.7]} 83. Rf8 {[%clk
0:00:03.7]} 83... Ne4 {[%clk 0:00:07.3]} 84. Rh8 {[%clk 0:00:03.1]} 84... Nxg3
{[%clk 0:00:07.5]} 85. Rh6 {[%clk 0:00:01.9]} 85... Kg5 {[%clk 0:00:07.3]} 86.
Rxf6 {[%clk 0:00:02.4]} 86... Nf5+ {[%clk 0:00:06.5]} 87. Ke6 {[%clk 0:00:02.4]}
87... Nd4+ {[%clk 0:00:07.3]} 88. Ke5 {[%clk 0:00:02.9]} 88... Nf3+ {[%clk
0:00:08]} 89. Ke6 {[%clk 0:00:01.7]} 89... h4 {[%clk 0:00:08.5]} 90. Rf8 {[%clk
0:00:01.9]} 90... h3 {[%clk 0:00:08.8]} 91. Rg8+ {[%clk 0:00:02.6]} 91... Kf4
{[%clk 0:00:08.4]} 92. Kf6 {[%clk 0:00:01.8]} 92... h2 {[%clk 0:00:08.2]} 93.
Rh8 {[%clk 0:00:02.4]} 93... g3 {[%clk 0:00:08.6]} 94. Ke6 {[%clk 0:00:02.4]}
94... g2 {[%clk 0:00:08.6]} 0-1

[Event "Late-Titled-Tuesday-Blitz-March-19-2024"]
[Site "Chess.com"]
[Date "2024.03.19"]
[Round "6"]
[White "Kostukov_Alex"]
[Black "kleber2007"]
[Result "0-1"]
[WhiteElo "2282"]
[BlackElo "2492"]
[TimeControl "180+1"]
[EndTime "15:01:20 PDT"]
[Termination "kleber2007 won by resignation"]

1. g3 {[%clk 0:02:51.5]} 1... c5 {[%clk 0:02:46]} 2. c4 {[%clk 0:02:50.5]} 2...
g6 {[%clk 0:02:44.1]} 3. Bg2 {[%clk 0:02:50.7]} 3... Bg7 {[%clk 0:02:44.2]} 4.
Nf3 {[%clk 0:02:50.3]} 4... Nc6 {[%clk 0:02:44.3]} 5. O-O {[%clk 0:02:50]} 5...
d6 {[%clk 0:02:44.2]} 6. Nc3 {[%clk 0:02:49.9]} 6... e6 {[%clk 0:02:44.3]} 7. e3
{[%clk 0:02:48.8]} 7... Nge7 {[%clk 0:02:44.8]} 8. d4 {[%clk 0:02:48.9]} 8...
O-O {[%clk 0:02:45.4]} 9. d5 {[%clk 0:02:46.6]} 9... Na5 {[%clk 0:02:43]} 10.
Qd3 {[%clk 0:02:38.4]} 10... Rb8 {[%clk 0:02:40.3]} 11. Bd2 {[%clk 0:02:35.9]}
11... a6 {[%clk 0:02:40.1]} 12. dxe6 {[%clk 0:02:30.2]} 12... Bxe6 {[%clk
0:02:36.6]} 13. b3 {[%clk 0:02:30]} 13... Nac6 {[%clk 0:02:22.5]} 14. Rad1
{[%clk 0:02:22.2]} 14... d5 {[%clk 0:02:16.1]} 15. Nxd5 {[%clk 0:02:14]} 15...
Nxd5 {[%clk 0:02:15.1]} 16. cxd5 {[%clk 0:02:14.3]} 16... Qxd5 {[%clk
0:02:14.7]} 17. Nd4 {[%clk 0:02:05]} 17... Qd7 {[%clk 0:02:03.9]} 0-1

[Event "Late-Titled-Tuesday-Blitz-March-19-2024"]
[Site "Chess.com"]
[Date "2024.03.19"]
[Round "6"]
[White "Inepton_Fermion"]
[Black "ZachHKL"]
[Result "1-0"]
[WhiteElo "2472"]
[BlackElo "2207"]
[TimeControl "180+1"]
[EndTime "15:01:25 PDT"]
[Termination "Inepton_Fermion won by resignation"]

1. Nf3 {[%clk 0:03:00.9]} 1... d5 {[%clk 0:02:59.1]} 2. g3 {[%clk 0:03:00.7]}
2... Nf6 {[%clk 0:02:58.8]} 3. Bg2 {[%clk 0:03:00.9]} 3... Bf5 {[%clk
0:02:59.4]} 4. O-O {[%clk 0:03:00.7]} 4... e6 {[%clk 0:03:00]} 5. c4 {[%clk
0:02:58.3]} 5... c6 {[%clk 0:03:00]} 6. b3 {[%clk 0:02:57.7]} 6... Be7 {[%clk
0:02:59.7]} 7. Bb2 {[%clk 0:02:57.9]} 7... O-O {[%clk 0:03:00.3]} 8. d3 {[%clk
0:02:56.4]} 8... Nbd7 {[%clk 0:03:00.5]} 9. Nbd2 {[%clk 0:02:36.8]} 9... Bg6
{[%clk 0:02:54.7]} 10. Qe1 {[%clk 0:02:19.7]} 10... Bd6 {[%clk 0:02:46.4]} 11.
e4 {[%clk 0:02:15]} 11... dxe4 {[%clk 0:02:40.9]} 12. dxe4 {[%clk 0:02:14.3]}
12... e5 {[%clk 0:02:33.5]} 13. Nh4 {[%clk 0:02:08.6]} 13... Nc5 {[%clk
0:02:29.8]} 14. Nxg6 {[%clk 0:01:51.2]} 14... hxg6 {[%clk 0:02:25.7]} 15. Qe2
{[%clk 0:01:51]} 15... Qe7 {[%clk 0:02:21.8]} 16. Rad1 {[%clk 0:01:50.4]} 16...
Ne6 {[%clk 0:02:20.3]} 17. Nf3 {[%clk 0:01:48.5]} 17... Nd7 {[%clk 0:02:17.1]}
18. Qd2 {[%clk 0:01:33.4]} 18... Nd4 {[%clk 0:02:09.7]} 19. Bxd4 {[%clk
0:01:30.5]} 19... exd4 {[%clk 0:02:08.4]} 20. Qxd4 {[%clk 0:01:30.9]} 1-0

[Event "Late-Titled-Tuesday-Blitz-March-19-2024"]
[Site "Chess.com"]
[Date "2024.03.19"]
[Round "6"]
[White "IMRosen"]
[Black "Arlo2024"]
[Result "1-0"]
[WhiteElo "2621"]
[BlackElo "2304"]
[TimeControl "180+1"]
[EndTime "15:01:26 PDT"]
[Termination "IMRosen won by resignation"]

1. d4 {[%clk 0:03:00.9]} 1... Nf6 {[%clk 0:02:59.3]} 2. Bf4 {[%clk 0:03:01.4]}
2... c5 {[%clk 0:02:58.4]} 3. e3 {[%clk 0:03:01.9]} 3... cxd4 {[%clk 0:02:58.1]}
4. exd4 {[%clk 0:03:02]} 4... d6 {[%clk 0:02:56.6]} 5. Nf3 {[%clk 0:03:01.9]}
5... g6 {[%clk 0:02:56.7]} 6. Nbd2 {[%clk 0:02:59.3]} 6... Bg7 {[%clk 0:02:57]}
7. Bc4 {[%clk 0:03:00]} 7... O-O {[%clk 0:02:56.1]} 8. O-O {[%clk 0:02:59.1]}
8... Nc6 {[%clk 0:02:47.2]} 9. c3 {[%clk 0:02:59.1]} 9... a6 {[%clk 0:02:41.9]}
10. a4 {[%clk 0:02:57.8]} 10... Na5 {[%clk 0:02:41.5]} 11. Ba2 {[%clk
0:02:56.6]} 11... b5 {[%clk 0:02:34.8]} 12. axb5 {[%clk 0:02:56.5]} 12... axb5
{[%clk 0:02:35.7]} 13. b4 {[%clk 0:02:54.2]} 13... Nc6 {[%clk 0:02:19.8]} 14.
Bxf7+ {[%clk 0:02:52.3]} 14... Rxf7 {[%clk 0:02:20.6]} 15. Rxa8 {[%clk
0:02:52.7]} 15... Nd5 {[%clk 0:02:21.2]} 16. Be3 {[%clk 0:02:35.9]} 16... Nxc3
{[%clk 0:02:16.8]} 17. Qb3 {[%clk 0:02:09.8]} 17... Ne2+ {[%clk 0:02:12.7]} 18.
Kh1 {[%clk 0:02:10.3]} 18... Nexd4 {[%clk 0:02:13]} 19. Nxd4 {[%clk 0:02:09]}
19... Nxd4 {[%clk 0:02:12.3]} 20. Bxd4 {[%clk 0:02:09.2]} 20... Bxd4 {[%clk
0:02:10.3]} 21. Rc1 {[%clk 0:02:07.7]} 1-0

[Event "Late-Titled-Tuesday-Blitz-March-19-2024"]
[Site "Chess.com"]
[Date "2024.03.19"]
[Round "6"]
[White "inagreV"]
[Black "masnyszachistaaa"]
[Result "0-1"]
[WhiteElo "2390"]
[BlackElo "2563"]
[TimeControl "180+1"]
[EndTime "15:02:22 PDT"]
[Termination "masnyszachistaaa won by checkmate"]

1. e4 {[%clk 0:02:58.6]} 1... e5 {[%clk 0:02:49.8]} 2. Nf3 {[%clk 0:02:58.6]}
2... Nc6 {[%clk 0:02:50]} 3. Bc4 {[%clk 0:02:58.5]} 3... Bc5 {[%clk 0:02:48.7]}
4. O-O {[%clk 0:02:57.6]} 4... Nf6 {[%clk 0:02:48.2]} 5. d3 {[%clk 0:02:57.7]}
5... d6 {[%clk 0:02:47.4]} 6. c3 {[%clk 0:02:57.2]} 6... Bb6 {[%clk 0:02:27.9]}
7. a4 {[%clk 0:02:55.3]} 7... a6 {[%clk 0:02:25.5]} 8. Re1 {[%clk 0:02:50.9]}
8... h6 {[%clk 0:02:19.7]} 9. Nbd2 {[%clk 0:02:43.2]} 9... O-O {[%clk
0:02:18.6]} 10. h3 {[%clk 0:02:42.5]} 10... Re8 {[%clk 0:02:14.7]} 11. b4 {[%clk
0:02:41.7]} 11... Be6 {[%clk 0:02:06.4]} 12. Qc2 {[%clk 0:02:37.6]} 12... d5
{[%clk 0:01:55]} 13. exd5 {[%clk 0:02:36.6]} 13... Bxd5 {[%clk 0:01:55]} 14. Bb2
{[%clk 0:02:23.4]} 14... Qd7 {[%clk 0:01:47.1]} 15. Rad1 {[%clk 0:02:22.4]}
15... Qf5 {[%clk 0:01:38.2]} 16. Bxd5 {[%clk 0:02:20.1]} 16... Nxd5 {[%clk
0:01:39.1]} 17. Nc4 {[%clk 0:02:20.1]} 17... Nf4 {[%clk 0:01:16.3]} 18. Nxb6
{[%clk 0:02:12.4]} 18... cxb6 {[%clk 0:01:17.2]} 19. Re3 {[%clk 0:02:07.7]}
19... Rac8 {[%clk 0:01:13.8]} 20. Qb3 {[%clk 0:02:01]} 20... Re6 {[%clk
0:01:11.8]} 21. c4 {[%clk 0:01:42.8]} 21... Rg6 {[%clk 0:01:11.2]} 22. Ne1
{[%clk 0:01:41]} 22... Nxh3+ {[%clk 0:01:08.6]} 23. Kf1 {[%clk 0:01:41.1]} 23...
Qxf2# {[%clk 0:01:07.9]} 0-1

[Event "Late-Titled-Tuesday-Blitz-March-19-2024"]
[Site "Chess.com"]
[Date "2024.03.19"]
[Round "6"]
[White "andjela_djidjika"]
[Black "Fore_Man"]
[Result "0-1"]
[WhiteElo "2136"]
[BlackElo "2281"]
[TimeControl "180+1"]
[EndTime "15:02:22 PDT"]
[Termination "Fore_Man won by resignation"]

1. e4 {[%clk 0:03:00.9]} 1... c5 {[%clk 0:02:56.7]} 2. Nf3 {[%clk 0:02:57.9]}
2... g6 {[%clk 0:02:55.7]} 3. c3 {[%clk 0:02:50]} 3... d5 {[%clk 0:02:54]} 4.
exd5 {[%clk 0:02:36.4]} 4... Qxd5 {[%clk 0:02:54.9]} 5. Be2 {[%clk 0:02:09.9]}
5... Nc6 {[%clk 0:02:53.1]} 6. O-O {[%clk 0:01:53.1]} 6... Bg7 {[%clk
0:02:51.9]} 7. Na3 {[%clk 0:01:46]} 7... Nf6 {[%clk 0:02:48.2]} 8. Bc4 {[%clk
0:01:19.6]} 8... Qd8 {[%clk 0:02:45.3]} 9. Bxf7+ {[%clk 0:01:14.8]} 9... Kxf7
{[%clk 0:02:44]} 10. d4 {[%clk 0:01:03.1]} 10... cxd4 {[%clk 0:02:42.7]} 11.
cxd4 {[%clk 0:01:01.7]} 11... Re8 {[%clk 0:02:41.6]} 12. Bg5 {[%clk 0:00:52.6]}
12... Kg8 {[%clk 0:02:41]} 13. Nc4 {[%clk 0:00:42]} 13... Bg4 {[%clk 0:02:38.7]}
14. Qb3 {[%clk 0:00:20.6]} 14... Qd5 {[%clk 0:02:32.7]} 15. Rad1 {[%clk
0:00:14.8]} 15... Bxf3 {[%clk 0:02:31.9]} 16. Bxf6 {[%clk 0:00:14.7]} 16... Bxg2
{[%clk 0:02:27.5]} 17. Rfe1 {[%clk 0:00:14.7]} 17... Bh1 {[%clk 0:02:25.9]} 0-1

[Event "Late-Titled-Tuesday-Blitz-March-19-2024"]
[Site "Chess.com"]
[Date "2024.03.19"]
[Round "6"]
[White "miraitrunks"]
[Black "egnfanclub"]
[Result "0-1"]
[WhiteElo "2173"]
[BlackElo "2388"]
[TimeControl "180+1"]
[EndTime "15:02:26 PDT"]
[Termination "egnfanclub won by resignation"]

1. e4 {[%clk 0:03:00.9]} 1... e5 {[%clk 0:02:59.7]} 2. Nf3 {[%clk 0:03:00.5]}
2... Nc6 {[%clk 0:02:59.9]} 3. d4 {[%clk 0:03:00.6]} 3... exd4 {[%clk
0:02:59.7]} 4. Nxd4 {[%clk 0:03:01.5]} 4... Bc5 {[%clk 0:02:59.9]} 5. Nb3 {[%clk
0:03:00.3]} 5... Bb6 {[%clk 0:02:59.8]} 6. Qe2 {[%clk 0:03:00.5]} 6... Nge7
{[%clk 0:02:59.9]} 7. Be3 {[%clk 0:03:00]} 7... d6 {[%clk 0:03:00]} 8. Nc3
{[%clk 0:02:59.6]} 8... O-O {[%clk 0:03:00.1]} 9. O-O-O {[%clk 0:02:59.7]} 9...
f5 {[%clk 0:03:00.5]} 10. Kb1 {[%clk 0:02:54.9]} 10... f4 {[%clk 0:02:58.1]} 11.
Bxb6 {[%clk 0:02:54.5]} 11... axb6 {[%clk 0:02:59]} 12. Nd4 {[%clk 0:02:34.5]}
12... Nxd4 {[%clk 0:02:57.4]} 13. Rxd4 {[%clk 0:02:32.6]} 13... Nc6 {[%clk
0:02:54.9]} 14. Qc4+ {[%clk 0:02:28.2]} 14... Kh8 {[%clk 0:02:52.9]} 15. Rd2
{[%clk 0:02:24.1]} 15... Ne5 {[%clk 0:02:44.7]} 16. Qd4 {[%clk 0:02:22.3]} 16...
Be6 {[%clk 0:02:39.2]} 17. a3 {[%clk 0:02:13.2]} 17... Qe7 {[%clk 0:02:22.5]}
18. Nd5 {[%clk 0:02:00.6]} 18... Qf7 {[%clk 0:02:22.3]} 19. Be2 {[%clk
0:01:48.9]} 19... b5 {[%clk 0:02:18.9]} 20. Qc3 {[%clk 0:01:27]} 20... c6 {[%clk
0:02:12.2]} 21. Nb4 {[%clk 0:01:21.3]} 21... Rfd8 {[%clk 0:02:02.4]} 22. Rhd1
{[%clk 0:01:19.2]} 22... Qe7 {[%clk 0:01:55]} 23. Qd4 {[%clk 0:01:07]} 23... c5
{[%clk 0:01:53.2]} 24. Qxd6 {[%clk 0:01:06]} 24... Rxd6 {[%clk 0:01:52.4]} 25.
Rxd6 {[%clk 0:01:06.9]} 25... cxb4 {[%clk 0:01:51]} 0-1

[Event "Late-Titled-Tuesday-Blitz-March-19-2024"]
[Site "Chess.com"]
[Date "2024.03.19"]
[Round "6"]
[White "Roedor"]
[Black "Boorchess"]
[Result "1-0"]
[WhiteElo "2312"]
[BlackElo "2537"]
[TimeControl "180+1"]
[EndTime "15:02:27 PDT"]
[Termination "Roedor won by resignation"]

1. c4 {[%clk 0:02:57]} 1... e5 {[%clk 0:02:59.3]} 2. g3 {[%clk 0:02:55.1]} 2...
h5 {[%clk 0:02:58.3]} 3. h4 {[%clk 0:02:53.7]} 3... Bc5 {[%clk 0:02:57.5]} 4.
Bg2 {[%clk 0:02:53.2]} 4... d6 {[%clk 0:02:57.5]} 5. Nc3 {[%clk 0:02:53.2]} 5...
a5 {[%clk 0:02:56.5]} 6. e3 {[%clk 0:02:52.4]} 6... Nc6 {[%clk 0:02:55.8]} 7.
Nge2 {[%clk 0:02:52.6]} 7... Bg4 {[%clk 0:02:55.1]} 8. f3 {[%clk 0:02:51.1]}
8... Bd7 {[%clk 0:02:53.5]} 9. d4 {[%clk 0:02:51.1]} 9... Ba7 {[%clk 0:02:52.9]}
10. O-O {[%clk 0:02:48.6]} 10... Nge7 {[%clk 0:02:51.2]} 11. Kh2 {[%clk
0:02:47.6]} 11... Ng6 {[%clk 0:02:45.6]} 12. f4 {[%clk 0:02:45]} 12... Nxh4
{[%clk 0:02:35.4]} 13. gxh4 {[%clk 0:02:39.6]} 13... Qxh4+ {[%clk 0:02:34.7]}
14. Kg1 {[%clk 0:02:40]} 14... exd4 {[%clk 0:02:33.4]} 15. Nxd4 {[%clk
0:02:37.9]} 15... Nxd4 {[%clk 0:01:59.4]} 16. exd4 {[%clk 0:02:34.9]} 16...
O-O-O {[%clk 0:01:57.9]} 17. Be3 {[%clk 0:02:19.6]} 17... Rde8 {[%clk
0:01:56.6]} 18. Qf3 {[%clk 0:02:16.2]} 18... Bc6 {[%clk 0:01:38]} 19. Qh3+
{[%clk 0:02:13.6]} 19... Qxh3 {[%clk 0:01:37]} 20. Bxh3+ {[%clk 0:02:14.5]}
20... Kb8 {[%clk 0:01:36.7]} 21. Bf2 {[%clk 0:02:12.2]} 21... g5 {[%clk
0:01:28.8]} 22. fxg5 {[%clk 0:02:05.9]} 22... Rhg8 {[%clk 0:01:28.1]} 23. d5
{[%clk 0:02:01.9]} 23... Rxg5+ {[%clk 0:01:25.2]} 24. Kh2 {[%clk 0:01:55.2]} 1-0

[Event "Late-Titled-Tuesday-Blitz-March-19-2024"]
[Site "Chess.com"]
[Date "2024.03.19"]
[Round "6"]
[White "Cluke86"]
[Black "ATM622"]
[Result "0-1"]
[WhiteElo "2323"]
[BlackElo "2505"]
[TimeControl "180+1"]
[EndTime "15:02:33 PDT"]
[Termination "ATM622 won by checkmate"]

1. e4 {[%clk 0:03:00.9]} 1... c6 {[%clk 0:02:59.9]} 2. Nf3 {[%clk 0:03:00.1]}
2... d5 {[%clk 0:02:59.8]} 3. d3 {[%clk 0:03:00.5]} 3... dxe4 {[%clk 0:02:59.1]}
4. dxe4 {[%clk 0:03:01.4]} 4... Qxd1+ {[%clk 0:02:58.8]} 5. Kxd1 {[%clk
0:03:02.3]} 5... g6 {[%clk 0:02:58.9]} 6. a4 {[%clk 0:02:58.5]} 6... Nf6 {[%clk
0:02:53.6]} 7. Nfd2 {[%clk 0:02:57.5]} 7... Bg7 {[%clk 0:02:53.7]} 8. f3 {[%clk
0:02:56.7]} 8... O-O {[%clk 0:02:52.2]} 9. Bc4 {[%clk 0:02:51.8]} 9... Nbd7
{[%clk 0:02:50.7]} 10. c3 {[%clk 0:02:50.9]} 10... Ne5 {[%clk 0:02:49.6]} 11.
Kc2 {[%clk 0:02:47.9]} 11... Rd8 {[%clk 0:02:47.4]} 12. Na3 {[%clk 0:02:39.7]}
12... Nxc4 {[%clk 0:02:42.8]} 13. Ndxc4 {[%clk 0:02:33.2]} 13... Be6 {[%clk
0:02:41.3]} 14. Bf4 {[%clk 0:02:29.8]} 14... b6 {[%clk 0:02:38.7]} 15. Rhd1
{[%clk 0:02:28.3]} 15... Nd7 {[%clk 0:02:36.2]} 16. Rd2 {[%clk 0:02:23.4]} 16...
f5 {[%clk 0:02:24.9]} 17. Rad1 {[%clk 0:01:55.6]} 17... fxe4 {[%clk 0:02:16.8]}
18. Bc7 {[%clk 0:01:55]} 18... exf3 {[%clk 0:02:10.5]} 19. gxf3 {[%clk
0:01:54.7]} 19... Bf5+ {[%clk 0:02:08.8]} 20. Kb3 {[%clk 0:01:52.2]} 20... Nc5+
{[%clk 0:02:08.5]} 21. Ka2 {[%clk 0:01:48.9]} 21... Rxd2 {[%clk 0:02:08.1]} 22.
Rxd2 {[%clk 0:01:47.4]} 22... Rc8 {[%clk 0:02:08.4]} 23. Bg3 {[%clk 0:01:42.4]}
23... Nxa4 {[%clk 0:02:06.7]} 24. Ne5 {[%clk 0:01:28.7]} 24... Be6+ {[%clk
0:02:04.8]} 25. Kb1 {[%clk 0:01:27.8]} 25... Bh6 {[%clk 0:02:00.5]} 26. Re2
{[%clk 0:01:23.8]} 26... Rd8 {[%clk 0:01:55.3]} 27. Nxc6 {[%clk 0:01:11.9]}
27... Rd1+ {[%clk 0:01:54.7]} 28. Kc2 {[%clk 0:01:11.8]} 28... Rc1+ {[%clk
0:01:50.9]} 29. Kd3 {[%clk 0:01:10.9]} 29... Nc5+ {[%clk 0:01:49.9]} 30. Kd4
{[%clk 0:01:08.8]} 30... Rd1+ {[%clk 0:01:48.4]} 31. Ke5 {[%clk 0:01:07]} 31...
Rd5# {[%clk 0:01:47.7]} 0-1

[Event "Late-Titled-Tuesday-Blitz-March-19-2024"]
[Site "Chess.com"]
[Date "2024.03.19"]
[Round "6"]
[White "MightyMike_009"]
[Black "Vadim_Galchenko"]
[Result "1-0"]
[WhiteElo "2770"]
[BlackElo "2604"]
[TimeControl "180+1"]
[EndTime "15:02:48 PDT"]
[Termination "MightyMike_009 won by resignation"]

1. d4 {[%clk 0:03:00.9]} 1... d5 {[%clk 0:02:59.8]} 2. c4 {[%clk 0:03:00.5]}
2... Nc6 {[%clk 0:03:00.5]} 3. Nc3 {[%clk 0:02:53.1]} 3... dxc4 {[%clk
0:03:00.3]} 4. e3 {[%clk 0:02:52.6]} 4... e5 {[%clk 0:02:59.5]} 5. d5 {[%clk
0:02:52.9]} 5... Nce7 {[%clk 0:02:58.7]} 6. Bxc4 {[%clk 0:02:52.9]} 6... Ng6
{[%clk 0:02:58.9]} 7. Nf3 {[%clk 0:02:50.4]} 7... a6 {[%clk 0:02:57.9]} 8. h4
{[%clk 0:02:47.8]} 8... Bd6 {[%clk 0:02:56.3]} 9. h5 {[%clk 0:02:44.6]} 9...
N6e7 {[%clk 0:02:54.2]} 10. e4 {[%clk 0:02:28.7]} 10... Bg4 {[%clk 0:02:48.9]}
11. Be2 {[%clk 0:02:24.8]} 11... h6 {[%clk 0:02:35]} 12. Be3 {[%clk 0:02:18.4]}
12... Nf6 {[%clk 0:02:34]} 13. Nd2 {[%clk 0:02:14.9]} 13... Bxe2 {[%clk
0:02:27.5]} 14. Qxe2 {[%clk 0:02:15.8]} 14... Qd7 {[%clk 0:02:21.6]} 15. f3
{[%clk 0:02:09.6]} 15... b5 {[%clk 0:02:09.9]} 16. a4 {[%clk 0:02:05.5]} 16...
b4 {[%clk 0:02:08.3]} 17. Ncb1 {[%clk 0:02:01.6]} 17... c6 {[%clk 0:02:04.1]}
18. Nc4 {[%clk 0:02:00.7]} 18... Bc7 {[%clk 0:01:44.7]} 19. d6 {[%clk
0:01:57.7]} 19... Bxd6 {[%clk 0:01:44.9]} 20. Nb6 {[%clk 0:01:57.9]} 20... Qb7
{[%clk 0:01:44.8]} 21. Nxa8 {[%clk 0:01:57.8]} 21... Qxa8 {[%clk 0:01:45.7]} 22.
Nd2 {[%clk 0:01:57.7]} 22... O-O {[%clk 0:01:43.7]} 23. Nc4 {[%clk 0:01:57.8]}
23... Bc7 {[%clk 0:01:41.6]} 24. O-O-O {[%clk 0:01:53.7]} 24... Rb8 {[%clk
0:01:20.1]} 25. b3 {[%clk 0:01:50.8]} 25... Qb7 {[%clk 0:01:15.1]} 26. g4 {[%clk
0:01:48.6]} 26... Nh7 {[%clk 0:01:07.5]} 27. Rd7 {[%clk 0:01:46.4]} 27... Nc8
{[%clk 0:01:05]} 28. Na5 {[%clk 0:01:39.5]} 28... Qa8 {[%clk 0:01:01.7]} 29.
Rxc7 {[%clk 0:01:39.7]} 1-0